bitfinex/quotes_ETHUSD_20250731
["timestamp","ask_amount","ask_price","bid_price","bid_amount"]
[1753991740818,4.3766,3744.1,3744.0,0.06]
[1753991741181,10.97086883,3744.1,3744.0,0.06]
[1753991742315,8.3,3744.1,3744.0,0.06]
[1753991742883,10.97086883,3744.1,3744.0,0.06]
[1753991743085,9.71715963,3744.1,3744.0,0.06]
[1753991743286,12.38802846,3744.1,3744.0,0.06]
[1753991743693,9.71715963,3744.1,3744.0,0.06]
[1753991744692,12.38802846,3744.1,3744.0,0.06]
[1753991744892,9.96289304,3744.1,3744.0,0.06]
[1753991745916,9.53399304,3744.1,3744.0,0.06]
[1753991746618,12.67166187,3744.1,3744.0,0.06]
[1753991747427,13.46741419,3744.1,3744.0,0.06]
[1753991747926,12.91741419,3744.1,3744.0,0.06]
[1753991748129,12.67166187,3744.1,3744.0,0.06]
[1753991749505,12.67066187,3744.1,3744.0,0.06]
[1753991749681,12.42492846,3744.1,3744.0,0.06]
[1753991749881,12.67065845,3744.1,3744.0,0.06]
[1753991752625,12.67065845,3744.1,3744.0,0.087]
[1753991753350,12.20385845,3744.1,3744.0,0.087]
[1753991753848,7.62132999,3744.1,3744.0,0.087]
[1753991754144,10.78209882,3744.1,3744.0,0.087]
[1753991754433,8.11122999,3744.1,3744.0,0.087]
[1753991754629,1e-08,3744.6,3744.0,0.5857]
[1753991754814,1e-08,3744.6,3744.1,0.75567226]
[1753991755132,4.242,3744.5,3744.4,2.67060897]
[1753991755431,4.73359012,3744.5,3744.4,3.10040897]
[1753991755792,4.73359012,3744.5,3744.4,2.67060897]
[1753991755999,4.73359012,3744.5,3744.0,0.087]
[1753991756199,4.73359012,3744.5,3744.3,2.67072617]
[1753991756200,0.24578807,3744.4,3744.3,2.67072617]
[1753991756969,0.24578807,3744.4,3744.2,2.67077126]
[1753991757287,4.241,3744.3,3744.2,2.67077126]
[1753991757434,4.48678807,3744.3,3744.2,3.10057126]
[1753991757833,1e-08,3744.6,3744.2,0.58585097]
[1753991758150,4.241,3744.5,3744.4,2.67065484]
[1753991758365,4.73276858,3744.5,3744.4,2.67065484]
[1753991759064,4.73276858,3744.5,3744.0,0.5168]
[1753991759283,0.24588429,3744.4,3744.0,0.5168]
[1753991759579,4.48688429,3744.4,3744.3,2.67070424]
[1753991759744,4.48688429,3744.4,3744.3,3.25921241]
[1753991759944,4.48688429,3744.4,3744.3,3.68901241]
[1753991760165,0.24588429,3744.4,3744.3,3.25921241]
[1753991760358,1e-08,3744.6,3744.5,2.67058352]
[1753991760589,0.49176914,3744.6,3744.5,2.67058352]
[1753991760935,0.2458843,3744.6,3744.5,3.10038352]
[1753991761184,0.2458843,3744.6,3744.5,3.16928352]
[1753991761369,4.241,3745.0,3744.9,2.67029827]
[1753991761546,4.4869239,3745.0,3744.9,2.67029827]
[1753991762989,4.9768239,3745.0,3744.9,2.67029827]
[1753991763337,4.4869239,3745.0,3744.9,2.67029827]
[1753991764056,4.4869239,3745.0,3744.7,2.67044088]
[1753991764057,4.9768239,3745.0,3744.7,2.67038628]
[1753991764254,0.7358239,3744.9,3744.7,2.67038628]
[1753991764458,0.7358239,3744.8,3744.7,2.67038628]
[1753991764665,0.8694239,3744.8,3744.7,2.67038628]
[1753991765053,5.5752239,3744.8,3744.6,0.35]
[1753991765375,1.2026239,3744.7,3744.6,0.35]
[1753991765577,3.22086883,3744.1,3744.0,0.087]
[1753991765880,3.22108285,3743.8,3743.6,0.1]
[1753991766080,10.70600675,3743.8,3743.6,0.1]
[1753991766258,14.47870675,3743.8,3743.6,0.1]
[1753991766888,11.66270675,3743.8,3743.6,0.1]
[1753991767106,8.44174704,3743.8,3743.6,0.1]
[1753991767286,11.79803406,3743.8,3743.6,0.1]
[1753991767591,9.12695121,3743.8,3743.6,0.1]
[1753991768088,4.239,3743.8,3743.6,0.1]
[1753991768273,4.239,3743.8,3743.7,2.77110253]
[1753991768274,4.24,3743.8,3743.7,2.77110253]
[1753991768479,4.24,3743.8,3743.7,0.1]
[1753991769280,4.7299,3743.8,3743.7,0.1]
[1753991769758,5.1967,3743.8,3743.7,0.1]
[1753991769956,5.71637,3743.8,3743.7,0.1]
[1753991770158,8.38745285,3743.8,3743.7,0.1]
[1753991770353,5.71637,3743.8,3743.7,0.1]
[1753991770591,8.38745285,3743.8,3743.7,0.1]
[1753991770774,5.71637,3743.8,3743.7,0.1]
[1753991771661,4.24,3743.8,3743.7,0.1]
[1753991772988,4.24,3743.8,3743.7,2.7711542]
[1753991773476,4.24,3743.8,3743.7,3.6703542]
[1753991773995,6.416,3744.7,3744.0,2.67087618]
[1753991774193,8.69012308,3744.6,3743.7,0.1]
[1753991774377,0.49342308,3744.5,3743.7,0.1]
[1753991774558,4.73342308,3744.4,3743.7,2.77112826]
[1753991774758,0.49342308,3744.3,3743.8,2.67106762]
[1753991774991,0.24671154,3744.2,3743.8,2.67106762]
[1753991775160,4.24,3744.1,3743.8,2.67106762]
[1753991775372,0.24677542,3744.0,3743.7,2.77112756]
[1753991775572,0.1336,3743.8,3743.7,2.77112756]
[1753991776808,4.24,3743.9,3743.8,2.67108285]
[1753991777169,4.24,3743.9,3743.8,3.62088285]
[1753991777369,0.001,3744.6,3744.5,2.67058352]
[1753991777608,4.7344527,3744.6,3744.5,2.67058352]
[1753991777808,4.86812518,3744.6,3744.3,2.67071638]
[1753991778008,0.49352518,3744.5,3744.0,2.67094017]
[1753991778199,4.3746,3744.6,3744.4,2.67065484]
[1753991778393,0.24673181,3744.5,3744.4,2.67065484]
[1753991778597,0.38033181,3744.5,3744.4,2.67065484]
[1753991779310,0.001,3744.6,3744.5,2.67058352]
[1753991779477,4.241,3744.6,3744.5,3.62038352]
[1753991780433,4.3746,3744.6,3743.8,0.4854]
[1753991780573,4.3746,3744.6,3744.5,2.67058352]
[1753991781080,5.2953,3744.6,3744.4,2.67060621]
[1753991781278,0.465,3744.5,3744.4,2.67060621]
[1753991781595,0.5986,3744.5,3744.4,2.67060621]
[1753991781911,0.1336,3744.5,3744.4,2.67060621]
[1753991782113,4.241,3744.6,3744.5,2.67058352]
[1753991782315,4.3746,3744.6,3744.5,2.67058352]
[1753991782695,4.3746,3744.6,3744.5,2.87058352]
[1753991783515,4.8396,3744.6,3744.5,2.87058352]
[1753991783876,4.3746,3744.6,3744.5,2.87058352]
[1753991784379,4.8396,3744.6,3744.5,2.87058352]
[1753991784780,5.77926,3744.6,3744.5,0.2]
[1753991784980,6.02589746,3744.6,3744.5,0.2]
[1753991785217,8.4497722,3744.6,3744.5,0.2]
[1753991786077,12.49302532,3744.6,3744.5,0.2]
[1753991786283,22.52171965,3744.6,3744.5,0.2]
[1753991786645,22.52152057,3744.6,3744.5,0.2]
[1753991787413,12.49282624,3744.6,3744.5,0.2]
[1753991787640,12.49282624,3744.6,3743.7,0.1]
[1753991787641,2.67108285,3743.8,3743.7,0.1]
[1753991787782,10.40313689,3743.8,3743.7,0.1]
[1753991787983,10.53673689,3743.8,3743.7,0.1]
[1753991788184,11.45743689,3743.8,3743.7,0.1]
[1753991789498,11.45724257,3743.8,3743.7,0.1]
[1753991789701,12.87006656,3743.8,3743.7,0.1]
[1753991792438,12.86982573,3743.8,3743.7,0.1]
[1753991792756,9.27904288,3743.8,3743.7,0.1]
[1753991793311,12.40582573,3743.8,3743.7,0.1]
[1753991793515,12.87082573,3743.8,3743.7,0.1]
[1753991795154,3.62621889,3743.8,3743.7,0.1]
[1753991795358,7.86621068,3743.8,3743.7,0.1]
[1753991795535,11.45799353,3743.8,3743.7,0.1]
[1753991796055,10.53729353,3743.8,3743.7,0.1]
[1753991796440,11.45799353,3743.8,3743.7,0.1]
[1753991796753,13.42089289,3743.8,3743.7,0.1]
[1753991796954,13.42089289,3743.8,3743.3,0.1]
[1753991796955,3.22136827,3743.4,3743.3,1e-08]
[1753991797157,6.221511,3743.2,3742.9,0.002]
[1753991797334,13.67260534,3743.2,3742.9,0.002]
[1753991797658,14.59330534,3743.2,3742.9,0.002]
[1753991797872,14.59330534,3743.2,3743.1,1e-08]
[1753991798457,16.19911574,3743.2,3743.1,1e-08]
[1753991798761,3.22222489,3742.2,3741.2,0.9498]
[1753991798962,11.27586846,3742.2,3741.2,0.9498]
[1753991799122,12.33016846,3742.2,3741.3,2.67284583]
[1753991799458,12.33016846,3742.2,3741.1,2.69299804]
[1753991799459,12.32955867,3742.2,3741.1,0.02]
[1753991799643,12.32920172,3742.2,3741.1,0.02]
[1753991800360,12.32920172,3742.2,3741.1,2.69300018]
[1753991800560,12.32920172,3742.2,3741.1,0.02]
[1753991801425,2.67293916,3741.2,3741.1,0.02]
[1753991801749,10.86383308,3741.2,3741.1,0.02]
[1753991801933,11.65093308,3741.2,3741.1,0.02]
[1753991802138,12.14150996,3741.2,3741.1,0.02]
[1753991802350,11.89622496,3741.2,3741.1,0.02]
[1753991803559,11.65093308,3741.2,3741.1,0.02]
[1753991805161,11.65093308,3741.2,3741.1,1e-08]
[1753991805364,11.895364,3741.2,3741.1,1e-08]
[1753991806429,11.883064,3741.2,3741.1,1e-08]
[1753991812067,12.016664,3741.2,3741.1,1e-08]
[1753991812252,12.01616807,3741.2,3741.1,1e-08]
[1753991813052,11.56306807,3741.2,3741.1,1e-08]
[1753991813578,12.01616807,3741.2,3741.1,1e-08]
[1753991814348,11.10876807,3741.2,3741.1,1e-08]
[1753991814549,12.01616807,3741.2,3741.1,1e-08]
[1753991815079,11.10876807,3741.2,3741.1,1e-08]
[1753991817551,11.56306807,3741.2,3741.1,1e-08]
[1753991817868,11.46616807,3741.2,3741.1,1e-08]
[1753991818073,12.01616807,3741.2,3741.1,1e-08]
[1753991818973,12.01681491,3741.2,3741.1,1e-08]
[1753991819788,12.01681491,3741.2,3741.1,0.00200001]
[1753991819967,12.01781491,3741.2,3741.1,0.00200001]
[1753991820349,11.11041491,3741.2,3741.1,0.00200001]
[1753991820553,11.56471491,3741.2,3741.1,0.00200001]
[1753991820891,11.11041491,3741.2,3741.1,0.00200001]
[1753991821063,6.18581491,3741.2,3741.1,0.00200001]
[1753991821272,0.37918183,3741.2,3741.1,0.00200001]
[1753991821467,4.62018183,3741.2,3741.1,3.60201062]
[1753991821664,0.001,3741.6,3741.5,2.67272484]
[1753991822074,0.001,3741.6,3741.5,3.28712484]
[1753991822290,0.001,3741.6,3741.5,0.6144]
[1753991822603,0.1346,3741.6,3741.1,0.48280001]
[1753991822779,4.242,3741.5,3741.2,0.4808]
[1753991822966,0.1336,3741.2,3741.1,0.00200001]
[1753991823170,4.3746,3741.2,3741.1,0.00200001]
[1753991823761,4.3746,3741.2,3741.1,0.48280001]
[1753991824391,4.3746,3741.2,3741.1,3.15581062]
[1753991824722,0.1336,3741.2,3741.1,3.73870492]
[1753991824923,0.001,3741.6,3741.5,2.67272484]
[1753991825211,4.242,3741.6,3741.5,2.67272484]
[1753991825423,4.242,3741.6,3741.5,3.74952233]
[1753991825708,0.001,3741.6,3741.5,3.74952233]
[1753991825910,4.242,3741.6,3741.5,3.88312233]
[1753991826078,0.001,3741.6,3741.5,3.88312233]
[1753991826281,6.418,3742.4,3741.5,1.23712473]
[1753991826610,4.241,3742.3,3742.2,2.67222489]
[1753991826965,4.241,3742.3,3742.2,3.15302489]
[1753991827510,0.1336,3742.8,3742.7,2.6718679]
[1753991827716,0.1336,3742.8,3742.7,3.1526679]
[1753991827880,0.1336,3743.0,3742.7,3.1526679]
[1753991828086,0.1336,3743.2,3742.9,2.67166111]
[1753991828303,4.24,3743.1,3743.0,2.67165375]
[1753991828487,4.24,3743.1,3743.0,3.15245375]
[1753991828828,4.24,3743.3,3743.0,0.6144]
[1753991829029,4.24,3743.4,3743.3,2.67143963]
[1753991829330,0.1336,3743.7,3743.6,2.67122555]
[1753991829479,4.3736,3743.7,3743.6,2.67122555]
[1753991829794,4.3736,3743.7,3743.6,3.15202555]
[1753991830004,4.3736,3743.7,3743.2,0.1336]
[1753991830194,0.1336,3743.5,3743.3,2.67143055]
[1753991830409,0.1336,3743.5,3742.3,1.31909036]
[1753991830589,4.24,3743.4,3743.2,2.6714875]
[1753991830793,4.24,3743.4,3743.3,2.67143963]
[1753991831032,4.24,3743.4,3743.3,3.15223963]
[1753991831197,4.239,3743.4,3743.3,3.73461927]
[1753991831394,4.239,3743.4,3743.3,3.15223963]
[1753991831783,4.3726,3743.4,3743.3,2.67143963]
[1753991832912,4.3726,3743.4,3743.3,3.15223963]
[1753991833422,6.423,3743.8,3743.7,2.6711542]
[1753991833575,10.7956,3743.8,3743.7,2.6711542]
[1753991833779,11.04039976,3743.8,3743.7,2.6711542]
[1753991834250,10.90679976,3743.8,3743.7,3.1519542]
[1753991834836,4.48379976,3743.8,3743.7,3.1519542]
[1753991835031,4.48379976,3743.8,3743.7,3.74763891]
[1753991835404,4.48379976,3743.8,3743.7,2.6711542]
[1753991836129,4.61739976,3743.8,3743.7,2.6711542]
[1753991836918,4.3726,3743.8,3743.7,2.6711542]
[1753991837496,4.48355485,3743.8,3743.7,3.1326542]
[1753991837890,4.48355485,3743.8,3743.7,2.6711542]
[1753991838820,4.48353923,3743.8,3743.7,2.6711542]
[1753991839021,4.48353923,3743.8,3743.7,3.1326542]
[1753991840303,4.48353923,3743.8,3743.1,0.4615]
[1753991840499,0.24453923,3743.7,3743.6,2.67121448]
[1753991840741,0.37813923,3743.7,3743.1,0.5951]
[1753991841037,0.37813923,3743.7,3743.6,2.67122555]
[1753991841200,0.3782364,3743.7,3743.6,2.67122555]
[1753991842001,4.4816364,3743.7,3743.6,3.13272555]
[1753991842399,4.4816364,3743.7,3743.6,2.67122555]
[1753991842604,0.2446364,3743.7,3743.6,2.67122555]
[1753991842812,4.237,3743.7,3743.6,2.67122555]
[1753991843025,4.4816364,3743.7,3743.6,2.67122555]
[1753991843414,4.9451364,3743.7,3743.3,2.67143169]
[1753991843640,4.7005,3743.7,3743.6,2.67122555]
[1753991843940,1.33608757,3743.7,3743.1,0.1336]
[1753991844114,4.48098757,3743.6,3742.9,2.67172513]
[1753991844315,4.48098757,3743.6,3742.5,3.13349091]
[1753991844316,0.1336,3743.1,3742.5,0.1336]
[1753991844532,5.1935,3743.0,3742.0,2.67233325]
[1753991844744,0.1336,3742.7,3742.5,2.6719472]
[1753991845043,4.236,3742.6,3742.3,2.67210787]
[1753991845209,4.236,3742.6,3742.4,2.67208052]
[1753991845538,0.1336,3742.5,3742.4,2.67208052]
[1753991845738,0.9575,3743.2,3742.8,2.67176493]
[1753991846037,0.9575,3743.2,3742.4,2.67201316]
[1753991846038,0.1336,3742.9,3742.4,2.67201316]
[1753991846238,0.1336,3742.5,3742.3,2.67212754]
[1753991846439,0.1336,3742.5,3742.4,2.67208208]
[1753991846639,4.3696,3742.5,3742.4,2.67208208]
[1753991847567,4.236,3742.5,3742.4,3.20650709]
[1753991848074,0.9575,3743.6,3743.0,2.67161878]
[1753991848275,3.0,3743.4,3743.0,2.67161878]
[1753991848472,0.1336,3743.1,3742.9,2.67170762]
[1753991848780,4.236,3743.0,3742.8,2.67177377]
[1753991849075,4.236,3743.0,3742.9,2.67172513]
[1753991850076,4.236,3743.0,3742.9,3.68094305]
[1753991850377,4.236,3743.0,3742.9,2.67172513]
[1753991850677,5.3271,3743.0,3742.3,0.1336]
[1753991850881,5.3271,3743.0,3742.9,2.67172513]
[1753991851044,5.3271,3743.0,3742.8,2.67178199]
[1753991851243,0.9575,3742.9,3742.7,2.67186111]
[1753991851445,0.4635,3742.8,3742.7,2.67186111]
[1753991851743,0.5971,3742.8,3742.7,2.67186111]
[1753991852139,0.5971,3742.8,3742.6,2.671929]
[1753991852479,0.9575,3742.7,3742.3,2.672149]
[1753991852643,0.9575,3742.6,3742.2,2.67216647]
[1753991852847,4.236,3742.7,3742.3,2.67215348]
[1753991852848,0.1336,3742.4,3742.3,2.67215348]
[1753991853071,1.0911,3742.4,3742.3,2.67215348]
[1753991853656,0.5971,3742.4,3742.3,2.67215348]
[1753991853973,1.0911,3742.4,3742.0,2.67235621]
[1753991854176,0.1336,3742.2,3742.0,2.67235621]
[1753991854388,0.1336,3742.2,3742.1,2.6722963]
[1753991855888,0.5971,3742.2,3742.1,2.6722963]
[1753991856295,0.1336,3742.2,3742.1,2.6722963]
[1753991857392,0.1336,3742.2,3742.1,3.67098695]
[1753991857771,4.236,3742.3,3742.2,2.67222489]
[1753991857960,4.236,3742.3,3742.2,3.26732489]
[1753991858901,0.1336,3742.8,3742.7,2.6718679]
[1753991859192,0.24697583,3743.4,3743.2,2.6715061]
[1753991859372,5.07904942,3743.3,3743.2,2.6715061]
[1753991859575,5.07904942,3743.3,3742.5,2.80555403]
[1753991859765,0.24694942,3743.2,3743.1,2.67158031]
[1753991859965,0.24694942,3743.2,3743.1,2.46145824]
[1753991860168,1.33804942,3743.2,3743.0,2.67160171]
[1753991860368,1.20449181,3743.1,3742.9,2.67171624]
[1753991860569,1.20447633,3743.0,3742.7,2.67185911]
[1753991860894,0.1336,3742.8,3742.6,2.67187287]
[1753991861063,0.1336,3742.8,3742.7,2.6718679]
[1753991861689,0.1336,3742.8,3742.5,2.67195442]
[1753991861690,1.0911,3742.8,3742.5,2.67195442]
[1753991861905,0.9575,3742.7,3742.6,2.67187972]
[1753991862114,1.0911,3742.7,3742.5,2.67199524]
[1753991862299,0.1336,3742.7,3742.6,2.67193929]
[1753991862892,1.0911,3742.7,3742.1,0.1336]
[1753991863097,0.9575,3742.6,3742.3,2.67208798]
[1753991863292,5.1925,3742.5,3742.4,2.67208208]
[1753991863514,4.235,3742.5,3742.4,2.67208208]
[1753991863921,4.3686,3742.5,3742.4,2.67208208]
[1753991864286,0.1336,3742.5,3742.4,2.67208208]
[1753991864490,4.235,3742.7,3742.4,0.8283621]
[1753991864719,4.235,3742.7,3742.6,2.67193929]
[1753991864899,0.1336,3742.9,3742.8,2.67179651]
[1753991865222,4.234,3743.0,3742.9,2.67172513]
[1753991865633,0.494,3743.6,3742.1,3.55]
[1753991865798,0.24743378,3743.5,3743.3,2.67143963]
[1753991865993,0.1336,3743.5,3743.4,2.67136827]
[1753991866219,4.234,3743.6,3743.5,2.67129691]
[1753991867222,4.6653,3743.6,3743.5,2.67129691]
[1753991867419,5.1545,3743.6,3742.8,4.234]
[1753991867721,0.1336,3743.5,3743.3,2.67138848]
[1753991867889,0.38122939,3743.5,3743.4,2.67136827]
[1753991868090,0.1336,3743.5,3743.3,2.67141758]
[1753991868289,0.4892,3743.4,3743.3,2.67141758]
[1753991868821,0.001,3743.8,3743.3,2.67143963]
[1753991869126,4.235,3743.8,3743.7,2.6711542]
[1753991870091,0.001,3743.8,3743.7,2.6711542]
[1753991870299,0.001,3743.8,3743.7,3.2663542]
[1753991871120,1e-08,3744.0,3743.9,2.67101151]
[1753991871295,1e-08,3744.2,3743.9,8.16332021]
[1753991871489,1e-08,3744.2,3744.1,2.67086883]
[1753991871695,1e-08,3744.2,3744.1,2.80446883]
[1753991872004,1e-08,3744.2,3744.1,7.49906883]
[1753991872209,1e-08,3744.2,3744.1,7.92246883]
[1753991872409,1e-08,3744.2,3744.1,3.68946883]
[1753991872607,1e-08,3744.2,3744.1,7.92246883]
[1753991873329,1e-08,3744.2,3744.1,3.68946883]
[1753991873534,1e-08,3744.2,3744.1,7.45986883]
[1753991874619,1e-08,3744.2,3744.1,3.22786883]
[1753991874842,0.92050001,3744.2,3744.1,2.67086883]
[1753991875629,1e-08,3744.2,3744.1,2.67086883]
[1753991877745,1e-08,3744.2,3744.1,3.13246883]
[1753991878477,1e-08,3744.2,3744.1,3.15917751]
[1753991878637,1e-08,3744.2,3744.1,4.16539233]
[1753991880380,1e-08,3745.0,3744.6,3.55]
[1753991880535,1e-08,3745.0,3744.9,16.25925187]
[1753991880742,1e-08,3745.0,3744.9,20.48925187]
[1753991880969,1e-08,3745.0,3744.9,21.89716122]
[1753991882349,1e-08,3745.0,3744.9,11.85820762]
[1753991882852,1e-08,3745.0,3744.9,6.61660762]
[1753991883073,1e-08,3745.0,3744.9,10.84660762]
[1753991883441,1e-08,3745.0,3744.9,6.64380762]
[1753991883879,0.43130001,3745.0,3744.9,7.87380762]
[1753991884063,1e-08,3745.0,3744.9,7.87380762]
[1753991884270,1e-08,3745.0,3744.9,11.88540762]
[1753991884853,1e-08,3745.0,3744.9,12.01900762]
[1753991885286,1e-08,3745.0,3744.9,11.55740762]
[1753991885602,1e-08,3745.0,3744.9,11.00640762]
[1753991885751,0.92050001,3745.0,3744.9,11.00640762]
[1753991885943,0.43130001,3745.0,3744.9,11.00640762]
[1753991886452,1e-08,3745.0,3744.9,11.00640762]
[1753991887194,1e-08,3745.0,3744.9,21.59536122]
[1753991887346,1e-08,3745.0,3744.9,21.92336122]
[1753991887993,1e-08,3745.0,3744.9,11.42280762]
[1753991888297,1e-08,3745.0,3744.9,11.00540762]
[1753991888996,1e-08,3745.0,3744.9,3.77740762]
[1753991889192,0.92050001,3745.0,3744.9,0.0272]
[1753991889482,1.05410001,3745.0,3744.9,0.0272]
[1753991890245,3.72432697,3745.0,3744.9,0.0272]
[1753991890851,4.05410001,3745.0,3743.7,0.1336]
[1753991891050,0.1336,3744.1,3743.7,2.67114655]
[1753991891286,0.9205,3744.0,3743.9,2.67098096]
[1753991891582,0.9205,3744.0,3743.8,2.67102936]
[1753991891757,0.1336,3744.1,3743.4,0.1336]
[1753991891967,0.9205,3743.9,3743.4,2.80489839]
[1753991892163,0.9205,3743.8,3743.5,2.67123827]
[1753991892358,0.9205,3743.7,3743.2,4.227]
[1753991892562,0.4313,3743.6,3743.5,2.671244]
[1753991892805,0.4313,3743.6,3743.1,0.022]
[1753991892806,0.9205,3743.6,3743.1,0.022]
[1753991893093,2.671305,3743.5,3743.1,0.022]
[1753991893252,3.0305625,3743.4,3743.1,0.022]
[1753991893583,3.9510625,3743.4,3743.1,0.022]
[1753991893916,0.9205,3743.3,3743.1,0.022]
[1753991894253,0.3591805,3743.4,3743.1,0.022]
[1753991894453,0.9205,3743.2,3743.1,0.022]
[1753991895501,3.9871159,3743.2,3743.1,0.022]
[1753991895801,6.9871159,3743.2,3743.1,0.022]
[1753991897411,3.9205,3743.2,3743.1,0.022]
[1753991897724,6.592011,3743.2,3743.1,0.022]
[1753991902078,7.142011,3743.2,3743.1,0.022]
[1753991902278,7.38932072,3743.2,3743.1,0.022]
[1753991902537,7.142011,3743.2,3743.1,0.022]
[1753991902693,9.58586356,3743.2,3743.1,0.022]
[1753991902905,9.71946356,3743.2,3743.1,0.022]
[1753991903578,10.21342154,3743.2,3743.1,0.022]
[1753991905428,9.71946356,3743.2,3743.1,0.022]
[1753991905640,10.21286964,3743.2,3743.1,0.022]
[1753991906288,9.96616638,3743.2,3743.1,0.022]
[1753991906980,10.21274621,3743.2,3743.1,0.022]
[1753991908563,9.96616638,3743.2,3743.1,0.022]
[1753991908949,9.71946356,3743.2,3743.1,0.022]
[1753991909151,9.96578704,3743.2,3743.1,0.022]
[1753991909735,10.21201399,3743.2,3743.1,0.022]
[1753991910352,9.96578704,3743.2,3743.1,0.022]
[1753991910553,10.21194524,3743.2,3743.1,0.022]
[1753991910724,9.96578704,3743.2,3743.1,0.022]
[1753991911240,10.21176212,3743.2,3743.1,1e-08]
[1753991911437,3.22179651,3742.8,3742.7,1e-08]
[1753991911638,20.62135011,3742.8,3742.7,1e-08]
[1753991911954,21.79105023,3742.8,3742.7,1e-08]
[1753991912134,23.39705023,3742.8,3742.7,1e-08]
[1753991912335,23.64308081,3742.8,3742.7,1e-08]
[1753991912571,26.22896447,3742.8,3742.7,1e-08]
[1753991912879,26.22899832,3742.8,3742.7,1e-08]
[1753991913491,26.33608632,3742.8,3742.7,1e-08]
[1753991914660,29.15208632,3742.8,3742.7,1e-08]
[1753991915545,3.22258198,3741.7,3741.6,1e-08]
[1753991915743,6.22286771,3741.3,3741.2,0.1]
[1753991915950,10.44886771,3741.3,3741.2,0.1]
[1753991916175,11.50606771,3741.3,3741.2,0.1]
[1753991918005,10.03246771,3741.3,3741.2,0.1]
[1753991918211,4.3596,3741.3,3741.2,0.1]
[1753991918349,7.03246771,3741.3,3741.2,0.1]
[1753991918748,8.89078848,3741.3,3741.2,0.1]
[1753991918947,12.81438848,3741.3,3741.2,0.1]
[1753991919380,11.89078848,3741.3,3741.2,0.1]
[1753991920003,12.81438848,3741.3,3741.2,0.1]
[1753991921306,13.61028032,3741.3,3741.2,0.1]
[1753991923453,12.19498728,3741.3,3741.2,0.1]
[1753991924092,12.13672004,3741.3,3741.2,0.1]
[1753991924289,10.03246771,3741.3,3741.2,0.1]
[1753991924493,7.226,3741.3,3741.2,0.5968]
[1753991924737,10.03246771,3741.3,3741.2,0.5968]
[1753991924927,10.2784269,3741.3,3741.2,0.5968]
[1753991925129,7.60555919,3741.3,3741.2,0.5968]
[1753991925499,10.2784269,3741.3,3741.2,0.5968]
[1753991925701,10.2784269,3741.3,3741.2,0.1]
[1753991925901,10.03246771,3741.3,3741.2,0.1]
[1753991926155,12.36139291,3741.3,3741.2,0.1]
[1753991926449,13.79361347,3741.3,3741.2,0.1]
[1753991929155,13.79361347,3741.3,3741.2,1e-08]
[1753991929686,13.79409819,3741.3,3741.2,1e-08]
[1753991933615,9.56809819,3741.3,3741.2,1e-08]
[1753991933948,7.38957299,3741.3,3741.2,1e-08]
[1753991934152,4.71670528,3741.3,3741.2,0.45770001]
[1753991934441,7.38957299,3741.3,3741.2,0.45770001]
[1753991934653,7.39011315,3741.3,3741.2,0.45770001]
[1753991934994,10.39011315,3741.3,3741.2,0.45770001]
[1753991935463,7.71724544,3741.3,3741.2,0.45770001]
[1753991935668,0.49324544,3741.3,3741.2,0.45770001]
[1753991935814,4.71724544,3741.3,3741.2,0.45770001]
[1753991936020,7.71724544,3741.3,3741.2,0.45770001]
[1753991936217,4.71724544,3741.3,3741.2,0.45770001]
[1753991936453,4.71724544,3741.3,3741.2,0.48510001]
[1753991936765,4.85084544,3741.3,3741.2,0.48510001]
[1753991936908,4.85084544,3741.3,3741.2,0.45770001]
[1753991937521,4.85107398,3741.3,3741.2,0.45770001]
[1753991937773,4.60395264,3741.3,3741.2,0.48510001]
[1753991937957,0.24635264,3741.3,3741.2,3.15803917]
[1753991938834,0.24635264,3741.3,3741.2,0.45770001]
[1753991939041,4.46935264,3741.3,3741.2,0.45770001]
[1753991939240,0.24635264,3741.3,3741.2,0.45770001]
[1753991939437,0.24635264,3741.3,3741.2,1e-08]
[1753991939638,4.46935264,3741.3,3741.2,0.45770001]
[1753991940531,4.60295264,3741.3,3741.2,0.45770001]
[1753991941407,4.60295264,3741.3,3741.2,1e-08]
[1753991941408,4.85043336,3741.3,3741.2,1e-08]
[1753991941614,9.04234441,3741.3,3741.2,1e-08]
[1753991942112,5.4294767,3741.3,3741.2,1e-08]
[1753991942416,8.10234441,3741.3,3741.2,1e-08]
[1753991942559,12.04234441,3741.3,3741.2,1e-08]
[1753991943090,12.59234441,3741.3,3741.2,1e-08]
[1753991943269,12.45774441,3741.3,3741.2,1e-08]
[1753991943719,12.45274441,3741.3,3741.2,1e-08]
[1753991943918,11.90274441,3741.3,3741.2,1e-08]
[1753991944078,11.40534441,3741.3,3741.2,1e-08]
[1753991944260,7.96274441,3741.3,3741.2,1e-08]
[1753991945096,7.47391105,3741.3,3741.2,1e-08]
[1753991945318,8.6614127,3741.3,3741.2,1e-08]
[1753991945761,7.7214127,3741.3,3741.2,1e-08]
[1753991946358,4.46950165,3741.3,3741.2,1e-08]
[1753991946532,4.46950165,3741.3,3741.2,0.45770001]
[1753991946848,0.24750165,3741.3,3741.2,3.15803917]
[1753991947378,0.24750165,3741.3,3741.2,0.48510001]
[1753991947521,0.24750165,3741.3,3741.2,0.45770001]
[1753991947904,0.24750165,3741.3,3741.2,3.15803917]
[1753991948216,0.24750165,3741.3,3741.2,0.45770001]
[1753991949245,4.221,3741.4,3741.2,3.1580178]
[1753991949542,2.67237009,3742.0,3741.3,0.4851]
[1753991949711,4.46857572,3741.9,3741.5,2.67267427]
[1753991949917,4.46857572,3741.9,3741.2,0.5833093]
[1753991949918,0.24757572,3741.8,3741.7,2.67258198]
[1753991950136,0.24757572,3741.8,3741.6,2.70004739]
[1753991950315,4.221,3741.7,3741.6,2.70004739]
[1753991950514,4.46857572,3741.7,3741.6,2.70004739]
[1753991950736,4.46848451,3741.7,3741.2,3.71393337]
[1753991951045,0.001,3741.6,3741.3,3.13056771]
[1753991951218,0.001,3741.6,3741.4,3.13049125]
[1753991951546,0.001,3741.6,3741.5,2.67272484]
[1753991951845,0.001,3741.6,3741.5,3.15782484]